bitfinex/quotes_ETHUSD_20260126
["timestamp","ask_amount","ask_price","bid_price","bid_amount"]
[1769420889193,12.40800723,2891.2,2890.2,13.50319548]
[1769420889386,13.65122817,2891.2,2890.3,0.8649576]
[1769420889585,13.65122817,2891.2,2890.2,13.50319039]
[1769420889786,0.02420219,2891.1,2890.2,13.50319039]
[1769420889984,12.43220942,2891.1,2890.2,12.63821658]
[1769420890233,12.43220942,2891.1,2890.0,13.50324877]
[1769420890395,0.02420219,2890.9,2890.0,13.50324877]
[1769420890786,12.43220942,2890.9,2890.0,0.86504799]
[1769420890986,13.65122817,2890.8,2890.0,0.86504799]
[1769420892214,1.24322094,2890.8,2890.0,13.50326457]
[1769420892415,12.40800723,2891.0,2890.0,13.50326457]
[1769420894017,12.40800723,2891.0,2890.1,12.63821658]
[1769420894319,12.40800723,2891.0,2890.1,13.50322485]
[1769420895399,12.40800723,2890.6,2889.7,12.64021658]
[1769420896197,12.40800723,2890.6,2889.7,13.50535486]
[1769420896399,12.40800723,2890.6,2889.7,12.64021658]
[1769420896594,13.67301014,2890.5,2889.7,0.002]
[1769420897603,0.02420219,2890.3,2889.7,0.002]
[1769420897822,12.40800723,2890.2,2889.7,0.002]
[1769420900436,12.79458412,2890.1,2889.7,0.002]
[1769420900635,12.77038193,2889.8,2889.2,0.002]
[1769420900800,12.79458412,2889.7,2889.2,0.002]
[1769420908846,12.79458412,2889.5,2889.2,0.002]
[1769420909049,12.79458412,2889.4,2888.6,0.002]
[1769420909350,12.79458412,2889.0,2888.6,0.002]
[1769420910949,13.51958412,2889.0,2888.6,0.002]
[1769420912152,13.49538193,2889.2,2888.6,0.002]
[1769420912729,12.77038193,2889.0,2888.6,0.002]
[1769420916165,13.52065471,2889.3,2888.6,0.002]
[1769420916477,2.10368788,2889.2,2888.6,0.002]
[1769420916827,12.2411963,2889.1,2888.6,0.002]
[1769420917655,12.26539849,2889.0,2888.6,0.002]
[1769420917842,12.2411963,2889.0,2888.6,0.002]
[1769420920458,1.37868788,2889.2,2888.0,0.002]
[1769420920459,12.2411963,2888.8,2888.0,0.002]
[1769420920632,12.26539849,2888.7,2888.0,0.00100104]
[1769420923448,0.02420219,2888.7,2888.0,0.00100104]
[1769420923649,0.02420219,2888.7,2888.0,11.77377501]
[1769420924178,12.26539849,2888.7,2888.0,0.00100104]
[1769420924459,1.29903985,2888.6,2888.0,0.00100104]
[1769420924648,13.54023615,2888.6,2888.0,0.00100104]
[1769420925156,1.29903985,2888.6,2888.0,11.77377501]
[1769420925358,0.001,2889.0,2888.5,0.002]
[1769420925760,12.26539849,2888.9,2888.5,0.002]
[1769420925963,12.26539849,2888.9,2888.5,0.001]
[1769420926358,12.26539849,2888.7,2888.5,0.001]
[1769420927062,12.2411963,2888.7,2888.5,0.001]
[1769420927740,13.46773615,2888.7,2888.5,0.001]
[1769420928948,1.22653985,2888.7,2888.5,0.001]
[1769420930765,0.02420219,2888.9,2888.5,0.001]
[1769420930969,0.02520219,2889.0,2888.5,0.001]
[1769420931265,12.26639849,2889.0,2888.5,0.001]
[1769420931478,12.26539849,2888.8,2888.5,0.001]
[1769420932140,12.26539849,2888.8,2888.0,0.00100104]
[1769420932141,12.26539849,2888.6,2888.0,0.00100104]
[1769420932341,13.46773615,2888.5,2888.0,0.00100104]
[1769420933550,12.26539849,2888.4,2888.0,0.00100104]
[1769420937355,12.26539849,2888.4,2888.2,0.002]
[1769420937580,12.26539849,2888.4,2888.2,0.001]
[1769420938170,12.2411963,2888.4,2888.2,0.001]
[1769420938368,1.34677362,2888.3,2888.2,0.001]
[1769420938569,12.26539849,2888.4,2888.2,0.001]
[1769420938753,12.26539849,2888.4,2888.0,0.00100104]
[1769420938754,12.26539849,2888.4,2888.0,4.16e-06]
[1769420939072,12.99039849,2888.4,2888.0,4.16e-06]
[1769420939269,12.2411963,2888.1,2888.0,4.16e-06]
[1769420940057,12.2411963,2888.1,2887.4,0.002]
[1769420940278,12.2411963,2888.1,2886.8,0.002]
[1769420940279,12.26539849,2887.8,2886.8,0.002]
[1769420940455,12.2411963,2887.5,2886.8,0.00100104]
[1769420940880,12.26539849,2887.4,2886.8,0.00100104]
[1769420941086,12.26539849,2887.4,2885.6,0.0200421]
[1769420941087,0.02420219,2886.9,2885.8,11.77277397]
[1769420941289,0.02420219,2886.7,2885.8,11.77277397]
[1769420941450,0.02420219,2886.7,2886.0,11.77277397]
[1769420942146,12.26539849,2887.6,2886.4,11.77277397]
[1769420942350,0.02420219,2887.3,2886.4,11.77277397]
[1769420942579,0.02420219,2887.1,2886.4,11.77277397]
[1769420942747,12.26539849,2887.6,2886.4,11.77277397]
[1769420943091,12.26539849,2887.8,2886.7,11.77277397]
[1769420943292,0.02420219,2888.0,2886.7,11.77277397]
[1769420943586,0.02420219,2888.0,2887.0,11.77277397]
[1769420943783,0.02420219,2888.0,2887.2,11.77277397]
[1769420944085,12.26539849,2887.6,2886.6,11.77277397]
[1769420944286,0.02420219,2887.6,2886.9,0.86596543]
[1769420944686,12.26539849,2887.6,2886.7,2.2030182]
[1769420944866,0.02420219,2887.7,2886.7,17.9256395]
[1769420945067,0.02420219,2887.7,2886.9,0.86596057]
[1769420945458,0.02420219,2887.7,2887.0,0.86593644]
[1769420945867,0.02420219,2887.9,2887.0,13.24900309]
[1769420946182,0.02420219,2887.7,2887.0,14.92028372]
[1769420946983,0.02420219,2888.1,2887.1,12.37766696]
[1769420947179,0.02420219,2887.9,2887.1,12.37766696]
[1769420947484,0.02420219,2888.1,2887.1,12.37766696]
[1769420947780,0.02420219,2887.9,2887.1,12.37766696]
[1769420947982,0.02420219,2887.9,2887.2,14.90670101]
[1769420948176,0.02420219,2887.9,2887.2,14.90669127]
[1769420948984,0.02420219,2887.9,2887.2,2.53420679]
[1769420949186,0.02420219,2887.9,2887.2,1.66832897]
[1769420949393,0.02420219,2887.7,2887.2,1.67032897]
[1769420949570,0.02420219,2887.6,2887.2,0.002]
[1769420950054,11.69210164,2887.7,2887.2,0.002]
[1769420950386,0.02420219,2887.9,2887.2,0.002]
[1769420950685,0.02420219,2887.7,2887.2,0.002]
[1769420952463,11.69210164,2888.0,2887.2,0.002]
[1769420952662,0.02420219,2887.9,2887.2,0.002]
[1769420954301,0.02420219,2888.1,2887.3,13.2027267]
[1769420954461,0.02420219,2888.1,2887.4,12.33686587]
[1769420954661,11.69310164,2888.6,2887.9,4.20012669]
[1769420954870,0.02420219,2888.4,2887.6,16.53699256]
[1769420955269,11.69210164,2888.9,2888.3,4.20012669]
[1769420955555,0.02420219,2888.6,2888.0,4.20012669]
[1769420955768,0.02420219,2888.8,2888.0,5.85333895]
[1769420955769,11.71630383,2888.8,2888.0,5.85333895]
[1769420955973,11.71630383,2888.8,2888.0,4.20012669]
[1769420956494,11.71630383,2888.8,2887.9,0.86565831]
[1769420956795,11.71630383,2888.8,2888.0,0.86564945]
[1769420957156,11.71630383,2888.8,2887.8,12.32719763]
[1769420957157,0.02420219,2888.4,2887.7,0.86572414]
[1769420958180,0.02420219,2888.4,2887.8,0.86570626]
[1769420958388,0.02420219,2888.4,2887.5,13.09119078]
[1769420958586,0.02420219,2888.4,2887.6,2.28413508]
[1769420959517,12.02960695,2888.8,2887.8,12.22538992]
[1769420960019,12.00540476,2888.8,2887.8,12.22538992]
[1769420960196,12.00540476,2888.8,2888.0,4.20012669]
[1769420960895,12.00540476,2888.8,2888.1,0.86562099]
[1769420961212,1.20054048,2888.7,2888.1,0.86562099]
[1769420961413,12.03060695,2889.0,2888.1,0.86562099]
[1769420961578,0.001,2888.2,2888.1,0.86562099]
[1769420961784,0.02420219,2888.9,2888.1,0.86562099]
[1769420964402,0.02420219,2888.9,2888.1,13.09101091]
[1769420965287,0.02420219,2888.9,2888.1,13.04101091]
[1769420966116,12.02960695,2888.9,2888.0,5.06576029]
[1769420966323,12.02960695,2888.7,2887.9,0.8656778]
[1769420966621,0.02420219,2888.5,2887.8,0.86569068]
[1769420966799,0.02420219,2888.5,2887.9,0.86567993]
[1769420967001,1.2295831,2888.5,2887.9,0.86567993]
[1769420967231,13.23498786,2888.5,2887.8,0.86569086]
[1769420967728,13.23498786,2888.5,2887.5,3.46319093]
[1769420968024,13.23498786,2888.5,2887.7,0.86574064]
[1769420968620,12.02960695,2888.3,2887.5,0.86577204]
[1769420968798,13.20836546,2888.2,2887.5,0.86577204]
[1769420969703,13.20836546,2888.2,2887.4,3.46331158]
[1769420969907,1.2029607,2888.2,2887.4,15.6887015]
[1769420972519,12.00540476,2888.8,2887.9,4.20012669]
[1769420972688,12.02960695,2888.8,2887.9,4.20012669]
[1769420973616,12.02960695,2888.8,2887.7,12.22538992]
[1769420973820,12.02960695,2888.8,2888.1,0.002]
[1769420974122,0.001,2888.6,2888.1,0.002]
[1769420974302,1.2040607,2888.6,2888.1,0.002]
[1769420975821,12.63595908,2888.6,2888.1,0.002]
[1769420977623,1.2040607,2888.6,2888.1,0.002]
[1769420978994,0.001,2888.6,2888.1,0.002]
[1769420982425,0.001,2888.6,2888.1,11.96732808]
[1769420983532,0.001,2888.6,2888.1,12.83294747]
[1769420983829,0.001,2888.6,2888.1,0.86761939]
[1769420984001,0.001,2888.6,2888.1,0.002]
[1769420986028,0.001,2888.4,2888.1,0.002]
[1769420990348,1.14438984,2888.4,2888.1,0.002]
[1769420990841,12.57628822,2888.4,2888.1,0.002]
[1769420991242,12.57628822,2888.4,2887.9,0.002]
[1769420992240,11.43189838,2888.3,2887.9,0.002]
[1769420994721,11.43189838,2888.1,2887.2,11.96732808]
[1769420994921,11.43189838,2888.1,2887.2,0.002]
[1769420995114,0.02420219,2888.0,2887.2,0.002]
[1769420995312,11.45610057,2888.0,2887.2,0.002]
[1769420998421,11.43189838,2887.7,2887.2,0.002]
[1769420998630,12.57508822,2887.6,2887.2,0.002]
[1769420998835,12.57508822,2887.6,2887.4,0.002]
[1769420999246,1.14318984,2887.6,2887.4,0.002]
[1769421000040,11.43189838,2887.8,2887.4,0.002]
[1769421000547,11.45610057,2887.7,2887.4,0.002]
[1769421000747,11.45610057,2887.7,2887.2,0.002]
[1769421002439,11.43189838,2887.4,2887.2,0.002]
[1769421002759,11.43189838,2887.4,2887.0,0.002]
[1769421002962,12.57750844,2887.3,2887.0,0.002]
[1769421004158,0.02420219,2887.2,2887.0,0.002]
[1769421004353,11.45610057,2887.2,2887.0,0.002]
[1769421007126,11.43189838,2887.2,2887.0,0.002]
[1769421008159,1.14561006,2887.3,2887.0,0.002]
[1769421008357,1.14561006,2887.3,2886.7,0.002]
[1769421008358,0.02420219,2887.1,2886.7,0.002]
[1769421008559,0.02420219,2887.1,2886.1,4.20262805]
[1769421008560,0.02420219,2886.8,2886.0,0.00100104]
[1769421009035,0.02420219,2886.8,2886.0,0.86724982]
[1769421010163,0.02420219,2886.8,2886.1,0.86622044]
[1769421010464,0.02420219,2887.1,2886.2,0.86618689]
[1769421010766,12.34908439,2887.0,2886.2,0.86618689]
[1769421012134,12.37328658,2887.1,2886.2,0.86618689]
[1769421012346,0.02420219,2887.1,2886.3,11.57642657]
[1769421012543,12.34908439,2887.6,2886.7,4.20262805]
[1769421012742,1.26153085,2887.5,2886.7,15.74440819]
[1769421013348,12.37328658,2887.1,2886.2,0.86618689]
[1769421013547,12.37328658,2887.1,2886.2,16.61059508]
[1769421014967,12.34908439,2887.1,2886.2,16.61059508]
[1769421016768,12.37328658,2887.3,2886.3,11.54178014]
[1769421016940,12.37328658,2887.3,2886.4,13.20283965]
[1769421017463,12.37328658,2887.3,2886.4,14.06894703]
[1769421017667,12.37328658,2887.1,2886.2,4.20262805]
[1769421017903,12.37328658,2887.1,2886.2,5.06880592]
[1769421018388,12.36007573,2886.5,2886.0,0.00100104]
[1769421018553,13.57188111,2886.4,2886.0,0.00100104]
[1769421021484,12.36007573,2885.9,2885.4,0.003]
[1769421021854,12.33587354,2885.9,2885.4,0.003]
[1769421022183,12.33587354,2886.1,2885.2,0.003]
[1769421022358,13.57188111,2886.0,2885.2,0.003]
[1769421022683,12.33587354,2885.7,2885.2,0.003]
[1769421022853,12.33587354,2885.7,2885.2,0.00200104]
[1769421023056,12.33587354,2885.7,2885.4,0.002]
[1769421023389,12.33587354,2885.7,2884.7,0.86662357]
[1769421023390,12.33587354,2885.0,2884.2,0.002]
[1769421023573,1.23600757,2884.9,2884.2,0.002]
[1769421023782,13.5960833,2884.9,2884.2,0.002]
[1769421024089,12.36007573,2884.5,2884.2,0.002]
[1769421024255,12.36007573,2884.5,2882.1,4.53457723]
[1769421024256,12.36007573,2884.5,2881.6,0.1704118]
[1769421024257,12.36007573,2884.3,2881.6,0.1704118]
[1769421024453,12.36007573,2884.3,2879.9,0.71114324]
[1769421024454,12.33587354,2882.7,2881.4,15.51375887]
[1769421024762,0.1808,2882.8,2882.0,4.20262805]
[1769421025080,0.1808,2882.8,2882.3,4.20262805]
[1769421025284,12.33587354,2883.4,2882.3,0.42200167]
[1769421025494,12.33587354,2883.4,2882.5,4.20262805]
[1769421025661,12.33587354,2883.8,2882.6,0.04157275]
[1769421026063,12.33587354,2884.1,2882.9,0.02420219]
[1769421026290,12.33587354,2884.1,2882.6,11.35270357]
[1769421026291,12.33587354,2884.1,2882.6,11.31113082]
[1769421026792,12.33587354,2884.1,2882.2,11.31113082]
[1769421026995,12.33587354,2883.9,2882.2,2.00090558]
[1769421027295,12.33587354,2883.9,2882.1,0.02420219]
[1769421027296,12.33587354,2883.9,2882.3,0.02420219]
[1769421027592,12.33587354,2883.9,2882.6,11.31113082]
[1769421027768,1.23358735,2884.0,2882.7,0.01736274]
[1769421028164,12.33587354,2883.9,2882.7,0.01736274]
[1769421028370,12.33587354,2883.9,2882.4,0.88469344]
[1769421028600,12.33587354,2883.7,2882.4,0.45278588]
[1769421028896,12.33587354,2883.7,2882.4,0.01736274]
[1769421029133,12.33587354,2883.5,2881.7,11.31113082]
[1769421029395,12.33587354,2883.3,2881.8,0.0173838]
[1769421029786,12.33587354,2883.1,2881.8,0.0173838]
[1769421029972,12.33587354,2883.1,2881.5,0.01738408]
[1769421030303,12.33587354,2882.9,2881.8,0.86751223]
[1769421030504,12.33587354,2882.9,2881.7,0.88490964]
[1769421030705,12.33587354,2882.9,2881.7,0.88493487]
[1769421030916,1.23358735,2883.0,2881.8,12.1786431]
[1769421031120,1.23358735,2883.0,2881.9,0.01738801]
[1769421031274,1.23358735,2883.0,2882.0,1.21960311]
[1769421031770,1.23358735,2883.0,2882.1,0.86742305]
[1769421031972,12.33587354,2883.8,2882.3,11.31113082]
[1769421032777,12.33587354,2883.8,2882.4,0.01736936]
[1769421032990,12.33587354,2883.8,2882.4,11.32850018]
[1769421033190,12.33587354,2883.8,2882.4,11.31113082]
[1769421033387,1.23358735,2883.7,2882.5,1.14848063]
[1769421034089,1.23358735,2883.7,2882.6,0.8672726]
[1769421034285,1.23358735,2883.7,2882.6,12.17840342]
[1769421035218,13.24886617,2883.7,2882.5,1.99841339]
[1769421035519,13.20551909,2883.7,2882.5,0.86730031]
[1769421035900,11.97193174,2883.5,2882.6,0.002]
[1769421036104,12.83894812,2883.5,2882.6,0.002]
[1769421036802,11.97193174,2883.3,2882.6,0.002]
[1769421037692,11.97193174,2883.1,2882.6,0.002]
[1769421037902,11.97193174,2882.9,2882.6,0.002]
[1769421039332,11.97193174,2882.9,2882.4,0.002]
[1769421039537,1.20152863,2883.0,2882.4,0.002]
[1769421039912,11.97193174,2883.6,2882.4,0.002]
[1769421040131,11.97193174,2883.6,2882.4,0.86933277]
[1769421040337,11.97193174,2883.6,2882.5,0.01731453]
[1769421040521,0.04335009,2883.5,2882.4,0.86933277]
[1769421042449,0.726,2883.8,2882.4,0.86933277]
[1769421042450,0.726,2883.8,2882.5,11.038785]
[1769421042742,0.726,2883.8,2882.5,12.53836858]
[1769421043054,11.97193174,2883.9,2882.5,12.53836858]
[1769421043825,11.97193174,2884.2,2882.7,11.0040929]
[1769421044164,11.99792992,2884.1,2882.9,0.86718235]
[1769421044346,11.97193174,2884.1,2883.0,0.43706136]
[1769421044711,11.97193174,2884.1,2883.0,0.47174745]
[1769421044912,11.97193174,2884.1,2883.0,0.43706136]
[1769421046244,11.97193174,2884.1,2883.1,0.86712219]
[1769421046438,13.16912491,2884.1,2883.1,1.34785804]
[1769421046639,11.97193174,2884.4,2883.1,12.3866357]
[1769421046845,0.726,2885.0,2883.1,12.3866357]
[1769421046846,0.726,2885.0,2883.1,12.35195094]
[1769421047053,11.99792992,2884.9,2883.1,12.35195094]
[1769421047347,11.97193174,2884.9,2883.1,12.35195094]
[1769421047545,13.19512309,2884.8,2883.3,11.0040929]
[1769421047714,13.16912491,2884.8,2883.3,11.0040929]
[1769421048354,0.001,2883.9,2883.4,0.86703197]
[1769421048579,11.99792992,2884.5,2883.4,0.86703197]
[1769421048734,11.97193174,2884.5,2883.4,0.86703197]
[1769421048935,11.97193174,2884.3,2883.4,0.86703197]
[1769421050436,11.97193174,2884.3,2883.3,3.46824656]
[1769421050948,1.19719317,2884.4,2883.3,14.47233946]
[1769421051144,0.02599818,2884.5,2883.4,0.00906149]
[1769421052170,11.97193174,2884.5,2883.4,0.00906149]
[1769421052676,11.97193174,2884.5,2883.1,0.48073585]
[1769421052875,11.97193174,2884.5,2883.3,0.86706152]
[1769421053183,11.97193174,2884.3,2883.2,0.86708806]
[1769421053337,0.8666895,2884.6,2883.1,0.86709888]
[1769421053338,11.97193174,2884.1,2883.1,0.86709888]
[1769421053539,11.97193174,2884.1,2883.0,0.86713254]
[1769421054058,0.02599818,2884.0,2882.9,0.86716539]
[1769421054265,13.17172473,2883.9,2883.0,0.86714506]
[1769421054575,13.17172473,2883.9,2882.7,0.86724251]
[1769421055667,13.17172473,2883.9,2882.8,0.03468849]
[1769421055861,11.97193174,2884.3,2882.9,11.0040929]
[1769421056063,11.97193174,2884.1,2883.0,0.03468609]
[1769421056369,0.86666087,2884.7,2883.0,0.12]
[1769421056370,11.97193174,2883.9,2883.0,0.12]
[1769421056868,11.97193174,2883.7,2883.0,0.12]
[1769421061961,11.97293174,2884.3,2883.0,11.99124159]
[1769421062189,13.19522309,2884.2,2883.1,1.54618507]
[1769421062407,13.16922491,2884.2,2883.1,1.54618507]
[1769421062569,13.16922491,2884.2,2883.1,1.58086995]
[1769421062762,13.16922491,2884.2,2883.2,0.86709211]
[1769421062980,13.16922491,2884.2,2883.1,1.54618507]
[1769421063183,11.97193174,2883.8,2883.0,0.12]
[1769421063384,11.97193174,2883.6,2883.0,0.12]
[1769421064121,11.93763174,2883.6,2883.0,0.12]
[1769421065412,0.02599818,2883.5,2883.0,0.12]
[1769421065714,1.22236117,2883.5,2883.0,0.12]
[1769421067823,13.05240668,2883.5,2883.0,0.12]
[1769421068026,13.0264085,2883.5,2883.0,0.12]
[1769421068684,11.83004551,2883.3,2882.6,0.002]
[1769421068912,11.83004551,2883.1,2882.6,0.002]
[1769421071606,11.83004551,2883.8,2882.6,0.002]
[1769421071918,11.83004551,2883.6,2882.6,0.002]
[1769421072098,11.83004551,2883.4,2882.6,0.002]
[1769421072301,11.83004551,2883.4,2882.8,0.002]
[1769421072501,1.18300455,2883.3,2882.8,0.002]
[1769421073912,0.02599818,2883.6,2882.8,0.002]
[1769421075319,12.74722342,2883.6,2882.8,0.002]
[1769421075524,12.74722342,2883.6,2882.6,0.002]
[1769421075525,11.83004551,2883.3,2882.6,2.08e-06]
[1769421075708,11.83004551,2883.1,2882.6,2.08e-06]
[1769421076109,11.83004551,2882.9,2882.6,2.08e-06]
[1769421076430,13.01564988,2882.8,2882.6,2.08e-06]
[1769421077420,1.18560437,2882.8,2882.6,2.08e-06]
[1769421077614,0.02599818,2883.0,2882.6,2.08e-06]
[1769421078441,11.83004551,2883.1,2882.6,2.08e-06]
[1769421078936,0.02599818,2883.0,2882.6,2.08e-06]
[1769421079714,10.88060729,2883.0,2882.6,2.08e-06]
[1769421079914,10.85460911,2883.0,2882.6,2.08e-06]
[1769421080110,11.9660682,2882.9,2882.6,2.08e-06]
[1769421080337,11.94007002,2882.9,2882.6,2.08e-06]
[1769421080638,10.85460911,2882.7,2882.6,2.08e-06]
[1769421083935,10.85460911,2882.7,2881.5,0.00100519]
[1769421084124,10.85460911,2882.5,2881.5,0.00100519]
[1769421084329,1.08806073,2882.4,2881.5,1.17410863]
[1769421084527,1.08806073,2882.4,2881.5,12.03447389]
[1769421084725,10.85460911,2882.8,2881.5,12.03447389]
[1769421084929,10.85460911,2882.8,2881.5,1.17410863]
[1769421085139,10.85460911,2882.8,2881.5,0.00100519]
[1769421085748,10.85460911,2882.6,2881.5,0.00100519]
[1769421085943,10.88060729,2882.5,2881.5,0.00100519]
[1769421086122,10.85460911,2882.5,2881.5,0.00100519]
[1769421087355,0.02599818,2882.4,2881.5,0.00100519]
[1769421087554,0.02599818,2882.4,2881.5,1.17410863]
[1769421087926,10.88060729,2882.4,2881.5,2.04169214]
[1769421088252,10.85460911,2882.4,2881.5,1.17410863]
[1769421088623,10.85460911,2882.4,2881.5,2.04170955]
[1769421089154,10.85460911,2882.4,2881.5,1.17410863]
[1769421089349,0.02599818,2882.3,2881.5,2.04171195]
[1769421089859,0.02599818,2882.3,2881.5,2.04170983]
[1769421090256,0.02599818,2882.3,2881.5,1.17410863]
[1769421090463,10.85460911,2882.2,2881.5,1.17410863]
[1769421090628,11.94007002,2882.4,2881.5,0.00100519]
[1769421090832,0.02599818,2882.3,2881.5,0.00100519]
[1769421091259,10.88060729,2882.3,2881.5,0.8685969]
[1769421091429,10.85460911,2882.3,2881.5,0.00100519]
[1769421092162,10.85460911,2882.3,2881.5,0.86860215]
[1769421092348,10.85460911,2882.3,2881.5,1.30272589]
[1769421092753,0.02420219,2882.5,2881.5,12.16309115]
[1769421092953,0.02599818,2882.4,2881.5,12.16309115]
[1769421094159,0.02599818,2882.4,2881.5,1.30272589]
[1769421094358,0.02599818,2882.4,2881.5,12.16309115]
[1769421094565,0.02599818,2882.5,2881.6,1.21650912]
[1769421094762,11.02541347,2882.7,2881.6,12.77326272]
[1769421095063,0.02420219,2882.4,2881.6,1.21650912]
[1769421095230,0.05020037,2882.4,2881.6,1.21650912]
[1769421096360,0.02420219,2882.2,2881.7,0.002]
[1769421096838,11.04961566,2882.4,2881.7,0.002]
[1769421097457,11.02541347,2882.4,2881.7,0.002]
[1769421097633,11.04961566,2882.6,2881.7,0.002]
[1769421097831,0.02420219,2882.4,2881.7,0.002]
[1769421098061,0.02420219,2882.2,2881.7,0.43609843]
[1769421098264,0.02420219,2882.2,2881.7,0.002]
[1769421100062,11.01889754,2882.4,2881.7,0.002]
[1769421100272,11.04961566,2883.4,2881.7,11.5587536]
[1769421100437,11.04961566,2883.0,2881.9,11.5567536]
[1769421100640,11.04961566,2882.8,2882.0,1.2424267]
[1769421100841,11.04961566,2882.8,2881.8,0.86751335]
[1769421101249,11.02541347,2882.8,2881.8,0.86751335]
[1769421101571,11.04961566,2882.7,2881.8,0.86751335]
[1769421101768,11.02541347,2882.7,2881.8,0.86751335]
[1769421101943,1.13158398,2883.0,2881.8,12.42426695]
[1769421101944,11.04961566,2883.0,2881.8,12.42426695]
[1769421102264,11.02541347,2883.3,2882.0,11.5567536]
[1769421102464,0.02420219,2883.2,2882.2,11.5567536]
[1769421104444,0.02420219,2883.2,2882.3,0.86736286]
[1769421104772,0.02420219,2883.2,2882.2,11.5567536]
[1769421104962,11.04961566,2883.2,2882.2,0.86739163]
[1769421105268,12.15699745,2883.2,2882.1,0.86740006]
[1769421105458,12.15699745,2883.2,2882.2,0.86738534]
[1769421105666,1.13158398,2883.2,2882.2,12.42413894]
[1769421105866,0.02420219,2883.4,2882.2,12.42413894]
[1769421106183,0.02420219,2883.1,2882.2,0.86739148]
[1769421106385,0.02420219,2883.1,2882.1,3.4696543]
[1769421106848,0.02420219,2883.1,2882.1,15.0264079]
[1769421107045,0.02420219,2883.1,2882.2,1.66555291]
[1769421107770,0.001,2883.0,2882.2,1.66555291]
[1769421108577,0.001,2883.0,2882.3,0.86736286]
[1769421109502,0.001,2883.0,2882.2,2.53292488]
[1769421111688,0.001,2883.0,2882.2,6.74956637]
[1769421111997,0.001,2883.0,2882.3,1.41796106]
[1769421112601,0.001,2883.0,2882.4,0.86733277]
[1769421113770,0.001,2883.0,2882.5,4.21664149]
[1769421114672,0.001,2883.0,2882.5,5.08392206]
[1769421114906,11.04961566,2883.4,2882.5,16.64067566]
[1769421114907,11.02541347,2883.4,2882.5,16.64067566]
[1769421115195,11.02541347,2883.4,2882.6,1.59310203]
[1769421115771,0.02420219,2883.5,2882.6,1.59310203]
[1769421116210,11.04961566,2883.5,2882.6,2.32010203]
[1769421116881,11.04961566,2883.5,2882.7,0.86724251]
[1769421117395,12.15699745,2883.5,2882.6,3.18737436]
[1769421117611,12.15699745,2883.5,2882.6,1.59427233]
[1769421118586,0.02420219,2883.3,2882.6,0.86727233]
[1769421118902,11.04961566,2883.3,2882.6,0.86727233]
[1769421119803,0.001,2883.2,2882.6,1.59427233]
[1769421121308,0.001,2883.2,2882.5,5.1186139]
[1769421121504,11.04961566,2882.9,2882.1,3.46968947]
[1769421121709,0.02420219,2883.1,2882.1,19.24308456]
[1769421122013,0.001,2883.2,2882.4,15.77339509]
[1769421122316,11.02541347,2883.1,2882.3,4.21664149]
[1769421122471,0.02420219,2882.9,2882.1,1.59442305]
[1769421122672,11.04961566,2882.9,2882.1,3.71288225]
[1769421123716,0.02420219,2883.1,2882.1,15.26963585]
[1769421124389,11.04961566,2883.1,2882.1,15.26963585]
[1769421124789,11.04961566,2883.1,2882.1,3.71288225]
[1769421125514,11.04961566,2883.1,2882.1,0.86742305]
[1769421125692,11.04961566,2883.1,2882.1,1.59442305]
[1769421128247,11.04961566,2883.1,2882.1,0.86742305]
[1769421128742,11.02541347,2883.1,2882.1,12.31887897]
[1769421128943,11.02541347,2883.1,2882.1,13.04587897]
[1769421129251,11.02541347,2883.1,2882.2,1.68626528]
[1769421129914,11.02541347,2883.1,2882.3,0.86736286]
[1769421130111,0.001,2883.2,2882.3,0.86736286]
[1769421130338,0.001,2883.2,2882.3,12.31881878]
[1769421130855,0.001,2883.2,2882.5,11.45145592]
[1769421131152,0.001,2883.2,2882.6,1.16902597]
[1769421131756,0.001,2883.2,2882.6,1.14731666]
[1769421132255,0.001,2883.2,2882.7,0.86724251]
[1769421136924,10.80715125,2883.7,2882.8,11.45145592]
[1769421137249,10.80715125,2883.7,2882.9,1.23533881]
[1769421138665,10.80715125,2883.7,2882.9,2.10250297]
[1769421138963,10.80715125,2883.7,2882.9,0.86716416]
[1769421139520,10.80715125,2883.7,2882.9,11.38522974]
[1769421141372,10.56776046,2884.0,2883.0,10.55275167]
[1769421141536,0.001,2884.3,2883.0,10.51806558]
[1769421141537,10.56776046,2884.2,2883.0,10.51806558]
[1769421141729,0.001,2884.3,2883.2,10.51806558]
[1769421143177,10.56876046,2884.3,2883.2,10.51806558]
[1769421143778,0.001,2884.1,2883.4,10.51806558]
[1769421144555,0.001,2884.3,2883.6,10.51806558]
[1769421144749,0.001,2884.3,2883.7,0.70451109]
[1769421145591,0.001,2884.3,2883.7,4.91673521]
[1769421145875,0.001,2884.3,2883.8,0.86691171]
[1769421146452,10.56876046,2884.3,2883.7,0.70451109]
[1769421146661,10.56876046,2884.3,2883.5,0.86697326]
[1769421146865,10.56776046,2884.7,2883.8,4.21222412]
[1769421147779,10.56776046,2884.7,2883.9,0.86688165]
[1769421148342,0.02420219,2885.0,2883.9,0.86688165]
[1769421148343,10.56776046,2884.9,2883.9,0.86688165]
[1769421148550,10.56776046,2884.9,2884.0,0.85466702]
[1769421148754,10.56776046,2884.9,2883.8,5.07911645]
[1769421150283,10.56776046,2884.5,2883.6,0.8669546]
[1769421150645,10.56776046,2884.5,2883.5,0.86698292]
[1769421150846,10.56776046,2884.3,2883.4,0.86702475]
[1769421151065,10.56776046,2884.3,2883.4,1.30055627]
[1769421151264,10.56776046,2884.3,2883.5,0.86699848]
[1769421152282,10.56776046,2884.3,2883.6,0.03467887]
[1769421152781,10.56776046,2884.3,2883.5,0.86699848]
[1769421152981,10.56776046,2884.3,2883.5,0.90167855]
[1769421153178,10.56776046,2884.3,2883.5,1.38201149]
[1769421153349,10.56776046,2884.3,2883.5,1.34733142]
[1769421153749,10.56776046,2884.3,2883.4,0.43353152]
[1769421153750,10.56776046,2884.3,2883.4,0.86703122]
[1769421153979,10.56776046,2884.3,2883.3,0.86706204]
[1769421155287,10.65642546,2884.1,2883.3,0.86706204]
[1769421156388,10.65542546,2884.5,2883.5,4.21222412]
[1769421156578,11.72096801,2884.5,2883.5,16.42269791]
[1769421156764,10.65542546,2884.5,2883.5,16.42269791]
[1769421158154,10.65542546,2884.5,2883.6,0.86697184]
[1769421159177,0.02420219,2885.0,2883.8,14.84774871]
[1769421159178,10.65542546,2884.9,2883.8,14.84774871]
[1769421159484,10.65542546,2884.9,2883.8,4.21222412]
[1769421160551,10.65542546,2884.9,2883.9,0.86688165]
[1769421160870,10.65542546,2884.7,2883.9,0.86688165]
[1769421166088,10.65542546,2885.0,2884.1,4.21189049]
[1769421166960,0.001,2884.5,2884.1,4.21189049]
[1769421167261,10.65542546,2885.0,2884.1,4.21189049]